[Event "11th LCC FIDE Open 2019"]
[Site "London"]
[Date "2019.12.04"]
[Round "7.43"]
[White "Saidmurodov, Shahjahon"]
[Black "Balaji, Aaravamudhan"]
[Result "0-1"]
[ECO "C56"]
[WhiteElo "1782"]
[BlackElo "2080"]
[Annotator "NA"]
[PlyCount "124"]
[EventDate "2019.11.29"]
[EventType "swiss"]
[EventCountry "ENG"]
[SourceTitle "playchess.com"]
[Source "ChessBase"]
[SourceQuality "1"]
[TimeControl "40/5400+30:1800+30"]

1. e4 {[%emt 0:00:00]} e5 {[%emt 0:00:00]} 2. Nf3 {[%emt 0:00:00]} Nc6 {[%emt 0:00:05]} 3. Bc4 {[%emt 0:00:00]} Nf6 {[%emt 0:00:00]} 4. d4 {[%emt 0:00:42]} exd4 {[%emt 0:00:00]} 5. O-O {[%emt 0:00:26]} Nxe4 {[%emt 0:00:08]} 6. Re1 {[%emt 0:00:11]} d5 {[%emt 0:00:04]} 7. Bxd5 {[%emt 0:00:32]} Qxd5 {[%emt 0:00:03]} 8. Nc3 {[%emt 0:00:12]} Qh5 {[%emt 0:00:05]} 9. Nxe4 {[%emt 0:00:10]} Be6 {[%emt 0:00:06]} 10. Bg5 {[%emt 0:00:23]} Bd6 {[%emt 0:00:10]} 11. Nxd6+ {[%emt 0:16:19]} cxd6 {[%emt 0:00:02]} 12. Bf4 {[%emt 0:00:58]} Qd5 {[%emt 0:00:05]} 13. c3 {[%emt 0:07:21]} Rc8 {[%emt 0:00:10]} 14. Qd2 {[%emt 0:03:08]} O-O {[%emt 0:08:38]} 15. Nxd4 {[%emt 0:20:25]} Nxd4 {[%emt 0:04:11]} 16. Qxd4 {[%emt 0:14:38]} Qxd4 {[%emt 0:07:56]} 17. cxd4 {[%emt 0:02:11]} Rfd8 {[%emt 0:00:42]} 18. Rac1 {[%emt 0:02:41]} Rc6 {[%emt 0:06:39]} 19. b3 {[%emt 0:03:02]} Kf8 {[%emt 0:02:02]} 20. f3 {[%emt 0:03:23]} Bd5 {[%emt 0:01:37]} 21. Rxc6 {[%emt 0:01:28]} bxc6 {[%emt 0:00:01]} 22. Kf2 {[%emt 0:00:36]} f6 {[%emt 0:00:02]} 23. h4 {[%emt 0:00:36]} h6 {[%emt 0:02:45]} 24. Rc1 {[%emt 0:01:41]} Ke7 {[%emt 0:00:57]} 25. Rc3 {[%emt 0:01:52]} g5 {[%emt 0:01:13]} 26. Bd2 {[%emt 0:01:48]} Ra8 {[%emt 0:01:46]} 27. a3 {[%emt 0:01:37]} a5 {[%emt 0:01:11]} 28. Re3+ {[%emt 0:01:22]} Kd7 {[%emt 0:01:23]} 29. hxg5 {[%emt 0:00:50]} fxg5 {[%emt 0:00:51]} 30. b4 {[%emt 0:01:14]} a4 {[%emt 0:00:55]} 31. Re1 {[%emt 0:00:39]} Rf8 {[%emt 0:00:26]} 32. Rh1 {[%emt 0:00:49]} Rf6 {[%emt 0:00:47]} 33. Be3 {[%emt 0:01:14]} Kc7 {[%emt 0:00:55]} 34. Ke2 {[%emt 0:02:03]} Kb6 {[%emt 0:00:28]} 35. Kd3 {[%emt 0:00:53]} Kb5 {[%emt 0:00:05]} 36. Rc1 {[%emt 0:01:18]} Rg6 {[%emt 0:00:57]} 37. Rc2 {[%emt 0:01:01]} g4 {[%emt 0:01:45]} 38. Ke2 {[%emt 0:06:55]} h5 {[%emt 0:11:37]} 39. Kd3 {[%emt 0:03:43]} h4 {[%emt 0:02:43]} 40. Rf2 {[%emt 0:01:00]} g3 {[%emt 0:04:14]} 41. Rc2 {[%emt 0:02:28]} h3 {[%emt 0:07:49]} 42. gxh3 {[%emt 0:04:56]} Bxf3 {[%emt 0:00:18]} 43. Rc1 {[%emt 0:00:35]} g2 {[%emt 0:02:25]} 44. Bf2 {[%emt 0:01:10]} Bd5 {[%emt 0:00:34]} 45. h4 {[%emt 0:01:54]} Rf6 {[%emt 0:01:19]} 46. Be3 {[%emt 0:02:01]} Rf1 {[%emt 0:03:13]} 47. Kd2 {[%emt 0:01:54]} Rh1 {[%emt 0:06:33]} 48. Bf2 {[%emt 0:01:09]} Bc4 {[%emt 0:00:57]} 49. Rg1 {[%emt 0:02:21]} Bf1 {[%emt 0:00:55]} 50. Ke3 {[%emt 0:04:27]} Rh3+ {[%emt 0:09:21]} 51. Kf4 {[%emt 0:01:08]} Rxa3 {[%emt 0:01:37]} 52. d5 {[%emt 0:01:41]} c5 {[%emt 0:01:37]} 53. bxc5 {[%emt 0:00:46]} dxc5 {[%emt 0:00:31]} 54. Ke4 {[%emt 0:01:03]} Rh3 {[%emt 0:01:34]} 55. d6 {[%emt 0:00:47]} Kc6 {[%emt 0:02:25]} 56. d7 {[%emt 0:05:10]} Kxd7 {[%emt 0:00:25]} 57. Bxc5 {[%emt 0:00:46]} a3 {[%emt 0:00:19]} 58. Bf8 {[%emt 0:01:24]} a2 {[%emt 0:00:58]} 59. Bg7 {[%emt 0:00:13]} Rh1 {[%emt 0:00:18]} 60. Rxg2 {[%emt 0:02:10]} Bxg2+ {[%emt 0:00:39]} 61. Kf4 {[%emt 0:00:14]} a1=Q {[%emt 0:00:03]} 62. Bxa1 {[%emt 0:00:19]} Rxa1 {[%emt 0:00:03]} 0-1

[Event "11th LCC FIDE Open 2019"]
[Site "London"]
[Date "2019.12.04"]
[Round "7.44"]
[White "Wilks, Simon"]
[Black "Varsha Ramesh"]
[Result "1-0"]
[ECO "B31"]
[WhiteElo "2071"]
[BlackElo "1669"]
[Annotator "NA"]
[PlyCount "59"]
[EventDate "2019.11.29"]
[EventType "swiss"]
[EventCountry "ENG"]
[SourceTitle "playchess.com"]
[Source "ChessBase"]
[SourceQuality "1"]
[TimeControl "40/5400+30:1800+30"]

1. e4 {[%emt 0:11:56]} c5 {[%emt 0:00:00]} 2. Nf3 {[%emt 0:00:05]} Nc6 {[%emt 0:00:00]} 3. Bb5 {[%emt 0:00:10]} g6 {[%emt 0:00:00]} 4. Bxc6 {[%emt 0:00:12]} dxc6 {[%emt 0:00:00]} 5. d3 {[%emt 0:00:19]} Bg7 {[%emt 0:00:00]} 6. h3 {[%emt 0:00:12]} Nf6 {[%emt 0:00:07]} 7. Nc3 {[%emt 0:00:25]} O-O {[%emt 0:00:07]} 8. O-O {[%emt 0:01:12]} Nd7 {[%emt 0:00:25]} 9. Be3 {[%emt 0:01:16]} e5 {[%emt 0:00:16]} 10. Qd2 {[%emt 0:00:27]} Re8 {[%emt 0:00:31]} 11. Bh6 {[%emt 0:01:26]} Bh8 {[%emt 0:00:25]} 12. Nh2 {[%emt 0:04:28]} b6 {[%emt 0:06:50]} 13. Rae1 {[%emt 0:03:53]} Nf8 {[%emt 0:00:39]} 14. f4 {[%emt 0:00:57]} Ne6 {[%emt 0:05:22]} 15. fxe5 {[%emt 0:08:26]} Bxe5 {[%emt 0:00:33]} 16. Ng4 {[%emt 0:00:38]} Bh8 {[%emt 0:01:18]} 17. e5 {[%emt 0:02:56]} Nd4 {[%emt 0:06:24]} 18. Bg5 {[%emt 0:01:47]} Qc7 {[%emt 0:02:09]} 19. Nh6+ {[%emt 0:01:18]} Kf8 {[%emt 0:00:43]} 20. Rxf7+ {[%emt 0:02:06]} Qxf7 {[%emt 0:00:06]} 21. Nxf7 {[%emt 0:00:05]} Kxf7 {[%emt 0:00:08]} 22. Rf1+ {[%emt 0:11:27]} Kg8 {[%emt 0:00:03]} 23. Bf6 {[%emt 0:05:01]} Be6 {[%emt 0:00:39]} 24. Ne4 {[%emt 0:02:36]} a5 {[%emt 0:00:35]} 25. c3 {[%emt 0:03:18]} Nf5 {[%emt 0:00:25]} 26. g4 {[%emt 0:01:01]} Ne7 {[%emt 0:00:32]} 27. Qh6 {[%emt 0:03:08]} Nd5 {[%emt 0:00:24]} 28. Bxh8 {[%emt 0:03:47]} Kxh8 {[%emt 0:00:05]} 29. Ng5 {[%emt 0:00:31]} Bg8 {[%emt 0:01:03]} 30. Rf7 {[%emt 0:00:35]} 1-0

[Event "11th LCC FIDE Open 2019"]
[Site "London"]
[Date "2019.12.04"]
[Round "7.45"]
[White "AuYeung, Chi Hung Jonathan"]
[Black "Ciocan, Maria-Alexandra"]
[Result "1/2-1/2"]
[ECO "E63"]
[WhiteElo "1770"]
[BlackElo "2058"]
[Annotator "NA RC"]
[PlyCount "114"]
[EventDate "2019.11.29"]
[EventType "swiss"]
[EventCountry "ENG"]
[SourceTitle "playchess.com"]
[Source "ChessBase"]
[SourceQuality "1"]
[TimeControl "40/5400+30:1800+30"]

1. d4 {[%emt 0:11:25]} Nf6 {[%emt 0:00:06]} 2. Nf3 {[%emt 0:00:13]} g6 {[%emt 0:00:15]} 3. c4 {[%emt 0:00:43]} Bg7 {[%emt 0:00:06]} 4. g3 {[%emt 0:00:14]} O-O {[%emt 0:00:09]} 5. Bg2 {[%emt 0:00:07]} d6 {[%emt 0:00:07]} 6. O-O {[%emt 0:00:19]} Nc6 {[%emt 0:00:32]} 7. Nc3 {[%emt 0:00:20]} a6 {[%emt 0:00:07]} 8. e4 {[%emt 0:06:51]} Bg4 {[%emt 0:00:43]} 9. Be3 {[%emt 0:01:09]} Nd7 {[%emt 0:04:15]} 10. Qd2 {[%emt 0:06:50]} Bxf3 {[%emt 0:13:18]} 11. Bxf3 {[%emt 0:00:04]} e5 {[%emt 0:00:10]} 12. d5 {[%emt 0:01:04]} Nd4 {[%emt 0:01:23]} 13. Bg2 {[%emt 0:04:16]} c5 {[%emt 0:05:22]} 14. dxc6 {[%emt 0:09:08]} bxc6 {[%emt 0:00:23]} 15. b4 {[%emt 0:05:09]} Nb6 {[%emt 0:11:53]} 16. Qd3 {[%emt 0:02:08]} Qd7 {[%emt 0:00:50]} 17. Rac1 {[%emt 0:20:11]} Qe6 {[%emt 0:02:53]} 18. Ne2 {[%emt 0:01:22]} c5 {[%emt 0:01:51]} 19. f4 {[%emt 0:05:59]} f6 {[%emt 0:10:56]} 20. Bxd4 {[%emt 0:04:53]} cxd4 {[%emt 0:03:04]} 21. c5 {[%emt 0:01:45]} dxc5 {[%emt 0:01:27]} 22. bxc5 {[%emt 0:00:16]} Nd7 {[%emt 0:02:07]} 23. f5 {[%emt 0:02:09]} Qxa2 {[%emt 0:02:57]} 24. fxg6 {[%emt 0:05:59]} hxg6 {[%emt 0:00:36]} 25. Bh3 {[%emt 0:01:05]} Qf7 {[%emt 0:01:41]} 26. c6 {[%emt 0:03:22]} Nb6 {[%emt 0:00:18]} 27. c7 {[%emt 0:01:07]} Nc8 {[%emt 0:05:18]} 28. Rc6 {[%emt 0:01:16]} Re8 {[%emt 0:00:21]} 29. Rxa6 {[%emt 0:02:50]} Rxa6 {[%emt 0:04:03]} 30. Qxa6 {[%emt 0:00:06]} d3 {[%emt 0:03:10]} 31. Bxc8 {[%emt 0:08:06]} dxe2 {[%emt 0:00:17]} 32. Be6 {[%emt 0:01:08]} exf1=Q+ {[%emt 0:01:53]} 33. Kxf1 {[%emt 0:00:08]} Qxe6 {[%emt 0:04:56]} 34. Qxe6+ {[%emt 0:00:14]} Rxe6 {[%emt 0:00:09]} 35. c8=Q+ Kf7 {[%emt 0:00:03]} 36. Qd7+ {[%emt 0:02:43]} Re7 {[%emt 0:00:06]} 37. Qd5+ {[%emt 0:00:11]} Kf8 {[%emt 0:00:35]} 38. g4 {[%emt 0:01:05]} Bh6 {[%emt 0:02:44]} 39. h4 {[%emt 0:00:58]} Kg7 {[%emt 0:00:57]} 40. Qd6 {[%emt 0:01:52]} Rf7 {[%emt 0:03:49]} 41. Ke2 {[%emt 0:01:25]} Bf4 {[%emt 0:04:50]} 42. Kd3 {[%emt 0:03:42]} Ra7 {[%emt 0:16:45]} 43. Kc4 {[%emt 0:01:20]} Ra4+ {[%emt 0:02:15]} 44. Kb5 {[%emt 0:00:36]} Ra7 {[%emt 0:00:09]} 45. Qc5 {[%emt 0:02:01]} Rf7 {[%emt 0:01:29]} 46. Kc6 {[%emt 0:01:25]} Bg3 {[%emt 0:03:03]} 47. h5 {[%emt 0:02:00]} gxh5 {[%emt 0:02:57]} 48. gxh5 {[%emt 0:00:07]} Kh6 {[%emt 0:00:38]} 49. Qe3+ {[%emt 0:07:46]} Bf4 {[%emt 0:00:07]} 50. Qh3 {[%emt 0:00:28]} Rg7 {[%emt 0:01:03]} 51. Qf5 {[%emt 0:05:19]} Rg5 {[%emt 0:01:41]} 52. Qxf6+ {[%emt 0:00:33]} Kxh5 {[%emt 0:00:04]} 53. Kd5 {[%emt 0:00:29]} Kg4 {[%emt 0:01:21]} 54. Qh6 {[%emt 0:02:13]} Rh5 {[%emt 0:01:09]} 55. Qg7+ {[%emt 0:01:22]} Rg5 {[%emt 0:01:17]} 56. Qa7 {[%emt 0:00:31]} Kh4 {[%emt 0:00:59]} 57. Qa1 {[%emt 0:01:48]} Rg3 {[%emt 0:00:55]} 1/2-1/2

[Event "11th LCC FIDE Open 2019"]
[Site "London"]
[Date "2019.12.04"]
[Round "7.46"]
[White "Orgler, Philipp"]
[Black "Grey, Nicholas D"]
[Result "1-0"]
[ECO "B08"]
[WhiteElo "2047"]
[BlackElo "1692"]
[Annotator "NA"]
[PlyCount "73"]
[EventDate "2019.11.29"]
[EventType "swiss"]
[EventCountry "ENG"]
[SourceTitle "playchess.com"]
[Source "ChessBase"]
[SourceQuality "1"]
[TimeControl "40/5400+30:1800+30"]

1. e4 {[%emt 0:09:16]} d6 {[%emt 0:00:37]} 2. d4 {[%emt 0:00:31]} Nf6 {[%emt 0:00:37]} 3. Nc3 {[%emt 0:00:21]} g6 {[%emt 0:01:25]} 4. Nf3 {[%emt 0:00:10]} Bg7 {[%emt 0:00:55]} 5. Bf4 {[%emt 0:00:08]} O-O {[%emt 0:05:34]} 6. Qd2 {[%emt 0:01:20]} c6 {[%emt 0:02:30]} 7. Bh6 {[%emt 0:01:11]} b5 {[%emt 0:03:08]} 8. Bd3 {[%emt 0:02:06]} Bg4 {[%emt 0:13:19]} 9. Bxg7 {[%emt 0:09:41]} Kxg7 {[%emt 0:01:41]} 10. Qe3 {[%emt 0:01:06]} Qc7 {[%emt 0:05:40]} 11. O-O {[%emt 0:08:37]} Nbd7 {[%emt 0:03:11]} 12. e5 {[%emt 0:05:26]} Nd5 {[%emt 0:03:23]} 13. Nxd5 {[%emt 0:00:24]} cxd5 {[%emt 0:00:37]} 14. Bxb5 {[%emt 0:05:46]} Bxf3 {[%emt 0:04:38]} 15. exd6 {[%emt 0:03:10]} Qxd6 {[%emt 0:03:04]} 16. Qxf3 {[%emt 0:00:18]} Nf6 {[%emt 0:01:57]} 17. b3 {[%emt 0:08:36]} Qb6 {[%emt 0:07:19]} 18. Qd3 {[%emt 0:02:47]} a6 {[%emt 0:02:18]} 19. Ba4 {[%emt 0:00:12]} Rac8 {[%emt 0:02:17]} 20. c4 {[%emt 0:03:02]} dxc4 {[%emt 0:01:32]} 21. bxc4 {[%emt 0:00:06]} Rfd8 {[%emt 0:01:04]} 22. Rfd1 {[%emt 0:00:32]} Qc7 {[%emt 0:02:51]} 23. Rac1 {[%emt 0:02:26]} Ng4 {[%emt 0:03:53]} 24. Qg3 {[%emt 0:01:41]} Qxg3 {[%emt 0:01:05]} 25. hxg3 {[%emt 0:00:07]} e5 {[%emt 0:01:24]} 26. d5 {[%emt 0:01:14]} Nf6 {[%emt 0:07:04]} 27. Re1 {[%emt 0:03:11]} Rc5 {[%emt 0:03:32]} 28. Bc6 {[%emt 0:04:36]} Rd6 {[%emt 0:02:19]} 29. f3 {[%emt 0:02:19]} Ng8 {[%emt 0:03:26]} 30. Ba4 {[%emt 0:01:43]} Ne7 {[%emt 0:01:18]} 31. Kf2 {[%emt 0:10:23]} f6 {[%emt 0:02:14]} 32. f4 {[%emt 0:00:31]} g5 {[%emt 0:02:52]} 33. fxe5 {[%emt 0:01:23]} fxe5 {[%emt 0:00:56]} 34. Rxe5 {[%emt 0:01:23]} Nxd5 {[%emt 0:01:42]} 35. Rd1 {[%emt 0:00:47]} Nc3 {[%emt 0:02:46]} 36. Rxc5 {[%emt 0:01:19]} Rxd1 {[%emt 0:00:39]} 37. Rc7+ {[%emt 0:00:28]} 1-0

[Event "11th LCC FIDE Open 2019"]
[Site "London"]
[Date "2019.12.04"]
[Round "7.47"]
[White "Johnson, Daniel"]
[Black "Finn, Peter"]
[Result "1/2-1/2"]
[ECO "E33"]
[WhiteElo "2186"]
[BlackElo "1895"]
[Annotator "NA"]
[PlyCount "53"]
[EventDate "2019.11.29"]
[EventType "swiss"]
[EventCountry "ENG"]
[SourceTitle "playchess.com"]
[Source "ChessBase"]
[SourceQuality "1"]
[TimeControl "40/5400+30:1800+30"]

1. d4 {[%emt 0:09:54]} Nf6 {[%emt 0:00:00]} 2. c4 {[%emt 0:00:26]} e6 {[%emt 0:00:00]} 3. Nc3 {[%emt 0:00:05]} Bb4 {[%emt 0:00:00]} 4. Qc2 {[%emt 0:00:02]} Nc6 {[%emt 0:00:00]} 5. Nf3 {[%emt 0:00:04]} d6 {[%emt 0:00:03]} 6. g3 {[%emt 0:00:03]} e5 {[%emt 0:00:14]} 7. dxe5 {[%emt 0:01:30]} dxe5 {[%emt 0:00:07]} 8. Bg2 {[%emt 0:01:18]} e4 {[%emt 0:00:12]} 9. Nd2 {[%emt 0:09:08]} Nd4 {[%emt 0:00:41]} 10. Qd1 {[%emt 0:00:39]} Bg4 {[%emt 0:00:29]} 11. h3 {[%emt 0:06:28]} Bh5 {[%emt 0:00:29]} 12. g4 {[%emt 0:01:03]} Bg6 {[%emt 0:00:06]} 13. Nf1 {[%emt 0:11:04]} O-O {[%emt 0:43:15]} 14. Bd2 {[%emt 0:02:12]} Qe7 {[%emt 0:01:50]} 15. Ne3 {[%emt 0:15:12]} Rfd8 {[%emt 0:04:27]} 16. g5 {[%emt 0:04:48]} Nh5 {[%emt 0:03:59]} 17. Ned5 {[%emt 0:02:13]} Qe5 {[%emt 0:02:07]} 18. Nxb4 {[%emt 0:19:29]} Nf3+ {[%emt 0:00:59]} 19. exf3 {[%emt 0:01:43]} exf3+ {[%emt 0:00:08]} 20. Kf1 {[%emt 0:00:41]} fxg2+ {[%emt 0:16:00]} 21. Kxg2 {[%emt 0:00:05]} Be4+ {[%emt 0:20:05]} 22. Nxe4 {[%emt 0:06:20]} Qxe4+ {[%emt 0:00:01]} 23. f3 {[%emt 0:00:01]} Nf4+ {[%emt 0:02:17]} 24. Kg3 {[%emt 0:02:12]} Nh5+ {[%emt 0:00:47]} 25. Kg2 {[%emt 0:01:14]} Nf4+ {[%emt 0:00:40]} 26. Kg3 {[%emt 0:00:43]} Nh5+ {[%emt 0:00:28]} 27. Kg2 {[%emt 0:01:10]} 1/2-1/2

[Event "11th LCC FIDE Open 2019"]
[Site "London"]
[Date "2019.12.04"]
[Round "7.50"]
[White "Coote, Trevor D"]
[Black "Lohia, Sohum"]
[Result "1/2-1/2"]
[ECO "E62"]
[WhiteElo "2075"]
[BlackElo "1889"]
[Annotator "NA"]
[PlyCount "68"]
[EventDate "2019.11.29"]
[EventType "swiss"]
[EventCountry "ENG"]
[SourceTitle "playchess.com"]
[Source "ChessBase"]
[SourceQuality "1"]
[TimeControl "40/5400+30:1800+30"]

1. g3 {[%emt 0:13:23]} Nf6 {[%emt 0:00:55]} 2. Bg2 {[%emt 0:00:03]} g6 {[%emt 0:01:05]} 3. Nf3 {[%emt 0:02:21]} Bg7 {[%emt 0:00:10]} 4. O-O {[%emt 0:00:02]} O-O {[%emt 0:00:07]} 5. d4 {[%emt 0:00:14]} d6 {[%emt 0:00:19]} 6. c4 {[%emt 0:00:13]} c6 {[%emt 0:00:11]} 7. Nc3 {[%emt 0:01:12]} Qa5 {[%emt 0:00:20]} 8. e4 {[%emt 0:02:25]} Bg4 {[%emt 0:00:14]} 9. h3 {[%emt 0:00:40]} Bxf3 {[%emt 0:00:09]} 10. Bxf3 {[%emt 0:01:15]} Nfd7 {[%emt 0:00:50]} 11. Be3 {[%emt 0:08:31]} Qb4 {[%emt 0:01:48]} 12. Qd3 {[%emt 0:04:54]} Nb6 {[%emt 0:05:16]} 13. Be2 {[%emt 0:04:32]} N8d7 {[%emt 0:12:37]} 14. b3 {[%emt 0:02:24]} c5 {[%emt 0:08:46]} 15. a3 {[%emt 0:12:39]} Qxb3 {[%emt 0:01:55]} 16. Rab1 {[%emt 0:17:27]} Qxc4 {[%emt 0:00:45]} 17. Qxc4 {[%emt 0:05:32]} Nxc4 {[%emt 0:00:05]} 18. Bxc4 {[%emt 0:00:10]} cxd4 {[%emt 0:00:04]} 19. Nd5 {[%emt 0:00:08]} dxe3 {[%emt 0:00:36]} 20. Rxb7 {[%emt 0:08:54]} Ne5 {[%emt 0:03:11]} 21. Nxe7+ {[%emt 0:03:48]} Kh8 {[%emt 0:01:03]} 22. Be2 {[%emt 0:00:22]} Rab8 {[%emt 0:06:13]} 23. Rfb1 {[%emt 0:02:10]} exf2+ {[%emt 0:01:11]} 24. Kxf2 Rxb7 {[%emt 0:03:45]} 25. Rxb7 {[%emt 0:00:05]} a5 {[%emt 0:11:42]} 26. Rb6 {[%emt 0:04:48]} Nc4 {[%emt 0:05:01]} 27. Rb5 {[%emt 0:04:28]} Nxa3 {[%emt 0:00:40]} 28. Rxa5 {[%emt 0:00:17]} Nb1 {[%emt 0:01:15]} 29. Bd3 {[%emt 0:01:52]} Nc3 {[%emt 0:00:19]} 30. Nd5 {[%emt 0:01:40]} Nxd5 {[%emt 0:00:35]} 31. Rxd5 {[%emt 0:00:52]} Be5 {[%emt 0:00:21]} 32. Rb5 {[%emt 0:00:18]} Ra8 {[%emt 0:03:01]} 33. Bc4 {[%emt 0:01:08]} Ra7 {[%emt 0:01:00]} 34. g4 {[%emt 0:00:36]} Kg7 {[%emt 0:01:22]} 1/2-1/2

[Event "11th LCC FIDE Open 2019"]
[Site "London"]
[Date "2019.12.05"]
[Round "8.2"]
[White "Smirnov, Anton"]
[Black "Gordon, Stephen J"]
[Result "1-0"]
[ECO "B33"]
[WhiteElo "2573"]
[BlackElo "2505"]
[Annotator "RC"]
[PlyCount "91"]
[EventDate "2019.11.29"]
[EventType "swiss"]
[EventCountry "ENG"]
[SourceTitle "playchess.com"]
[Source "ChessBase"]
[SourceQuality "1"]
[TimeControl "40/5400+30:1800+30"]

1. e4 {[%emt 0:00:00]} c5 {[%emt 0:00:00]} 2. Nf3 {[%emt 0:00:00]} Nc6 {[%emt 0:00:00]} 3. d4 {[%emt 0:00:11]} cxd4 {[%emt 0:00:00]} 4. Nxd4 {[%emt 0:00:06]} Nf6 {[%emt 0:00:07]} 5. Nc3 {[%emt 0:00:15]} e5 {[%emt 0:00:06]} 6. Ndb5 {[%emt 0:00:08]} d6 {[%emt 0:00:07]} 7. Bg5 {[%emt 0:00:09]} a6 {[%emt 0:00:08]} 8. Na3 {[%emt 0:00:03]} b5 {[%emt 0:00:06]} 9. Nd5 {[%emt 0:00:04]} Be7 {[%emt 0:00:14]} 10. Bxf6 {[%emt 0:00:10]} Bxf6 {[%emt 0:00:04]} 11. c4 {[%emt 0:00:07]} b4 {[%emt 0:00:17]} 12. Nc2 {[%emt 0:00:05]} O-O {[%emt 0:00:10]} 13. h4 {[%emt 0:02:04]} a5 {[%emt 0:02:45]} 14. g3 {[%emt 0:00:24]} Be6 {[%emt 0:00:38]} 15. Bg2 {[%emt 0:00:12]} g6 {[%emt 0:02:00]} 16. Nxf6+ {[%emt 0:07:20]} Qxf6 {[%emt 0:00:33]} 17. b3 {[%emt 0:00:06]} Rfd8 {[%emt 0:07:40]} 18. Qd2 {[%emt 0:04:46]} h5 {[%emt 0:11:17]} 19. O-O {[%emt 0:08:06]} Kg7 {[%emt 0:10:42]} 20. Rae1 {[%emt 0:10:17]} Rab8 {[%emt 0:02:35]} 21. Re3 {[%emt 0:08:08]} Rd7 {[%emt 0:01:04]} 22. Rd3 {[%emt 0:16:18]} Rbd8 {[%emt 0:06:44]} 23. f4 {[%emt 0:00:00]} exf4 {[%emt 0:02:16]} 24. gxf4 {[%emt 0:00:00]} Bg4 {[%emt 0:17:23]} 25. Qf2 {[%emt 0:00:00]} a4 {[%emt 0:05:29]} 26. Ne3 {[%emt 0:00:00]} axb3 {[%emt 0:02:50]} 27. axb3 {[%emt 0:00:00]} Ne7 {[%emt 0:02:49]} 28. Re1 {[%emt 0:00:00]} Qe6 {[%emt 0:09:53]} 29. Nc2 {[%emt 0:08:29]} Rb8 {[%emt 0:04:22]} 30. Ra1 {[%emt 0:01:14]} Nc8 {[%emt 0:08:37]} 31. Ra6 {[%emt 0:00:48]} Qe7 {[%emt 0:01:06]} 32. Nd4 {[%emt 0:02:41]} Rbb7 {[%emt 0:03:05]} 33. Ra8 {[%emt 0:04:53]} Rbc7 {[%emt 0:00:37]} 34. Nc2 {[%emt 0:01:57]} Rc5 {[%emt 0:00:44]} 35. Nxb4 {[%emt 0:00:59]} Ra7 {[%emt 0:00:22]} 36. Nd5 {[%emt 0:00:33]} Qb7 {[%emt 0:00:36]} 37. Rxa7 {[%emt 0:00:05]} Qxa7 {[%emt 0:00:27]} 38. Qd4+ {[%emt 0:00:06]} Kg8 {[%emt 0:00:31]} 39. Kh2 {[%emt 0:01:32]} Ra5 {[%emt 0:00:32]} 40. Qxa7 {[%emt 0:01:28]} Rxa7 {[%emt 0:00:02]} 41. e5 {[%emt 0:31:38]} Bf5 {[%emt 0:03:35]} 42. Rd2 {[%emt 0:00:00]} dxe5 {[%emt 0:01:51]} 43. fxe5 {[%emt 0:00:00]} Ra1 44. Bh3 {[%emt 0:09:44]} Bxh3 {[%emt 0:03:15]} 45. Kxh3 {[%emt 0:00:29]} Re1 {[%emt 0:00:15]} 46. Ra2 {[%emt 0:00:17]} 1-0

[Event "11th LCC FIDE Open 2019"]
[Site "London"]
[Date "2019.12.05"]
[Round "8.3"]
[White "Arkell, Keith C"]
[Black "Gormally, Daniel W"]
[Result "1/2-1/2"]
[ECO "A24"]
[WhiteElo "2445"]
[BlackElo "2491"]
[Annotator "ChessBase"]
[PlyCount "48"]
[EventDate "2019.11.29"]
[EventType "swiss"]
[EventCountry "ENG"]
[SourceTitle "playchess.com"]
[Source "ChessBase"]
[SourceQuality "1"]
[TimeControl "40/5400+30:1800+30"]

1. Nf3 {[%emt 0:01:07]} Nf6 {[%emt 0:00:00]} 2. c4 {[%emt 0:00:07]} g6 {[%emt 0:00:16]} 3. Nc3 {[%emt 0:00:06]} Bg7 {[%emt 0:00:07]} 4. g3 {[%emt 0:00:12]} O-O {[%emt 0:00:32]} 5. Bg2 {[%emt 0:00:06]} d6 {[%emt 0:00:42]} 6. O-O {[%emt 0:00:08]} Nbd7 {[%emt 0:00:27]} 7. d3 {[%emt 0:01:22]} c6 {[%emt 0:02:08]} 8. e4 {[%emt 0:02:09]} e5 {[%emt 0:00:16]} 9. Be3 {[%emt 0:01:15]} Re8 {[%emt 0:03:08]} 10. h3 {[%emt 0:00:16]} d5 {[%emt 0:10:21]} 11. cxd5 {[%emt 0:00:48]} cxd5 {[%emt 0:00:05]} 12. exd5 {[%emt 0:00:37]} Nb6 {[%emt 0:00:07]} 13. Bxb6 {[%emt 0:03:04]} Qxb6 {[%emt 0:01:35]} 14. Qb3 {[%emt 0:02:00]} e4 {[%emt 0:08:32]} 15. Qxb6 {[%emt 0:00:53]} axb6 {[%emt 0:00:05]} 16. dxe4 {[%emt 0:04:21]} Nxe4 {[%emt 0:00:04]} 17. Rfe1 {[%emt 0:07:11]} Bf5 {[%emt 0:09:01]} 18. Nxe4 {[%emt 0:25:27]} Bxe4 {[%emt 0:01:00]} 19. Rad1 {[%emt 0:01:37]} Bxb2 {[%emt 0:12:04]} 20. Re2 {[%emt 0:14:34]} Bc3 {[%emt 0:00:43]} 21. Nd4 {[%emt 0:07:38]} Bxd4 {[%emt 0:09:07]} 22. Rxe4 {[%emt 0:06:22]} Rxe4 {[%emt 0:01:54]} 23. Bxe4 {[%emt 0:00:03]} Ra4 {[%emt 0:00:42]} 24. Bc2 {[%emt 0:13:26]} Rxa2 {[%emt 0:01:26]} 1/2-1/2